[Event "Late-Titled-Tuesday-Blitz-April-02-2024"]
[Site "Chess.com"]
[Date "2024.04.02"]
[Round "4"]
[White "shimastream"]
[Black "FrankDux44"]
[Result "1-0"]
[WhiteElo "3011"]
[BlackElo "2704"]
[TimeControl "180+1"]
[EndTime "14:36:57 PDT"]
[Termination "shimastream won on time"]

1. Nf3 {[%clk 0:03:00.9]} 1... d5 {[%clk 0:02:46.1]} 2. g3 {[%clk 0:03:00.2]}
2... c6 {[%clk 0:02:45.8]} 3. Bg2 {[%clk 0:03:00.1]} 3... Bg4 {[%clk 0:02:46.3]}
4. h3 {[%clk 0:02:56.7]} 4... Bh5 {[%clk 0:02:44.6]} 5. c4 {[%clk 0:02:50.8]}
5... e6 {[%clk 0:02:42.4]} 6. cxd5 {[%clk 0:02:43.8]} 6... Bxf3 {[%clk
0:02:36.6]} 7. Bxf3 {[%clk 0:02:43.5]} 7... cxd5 {[%clk 0:02:37.2]} 8. d4 {[%clk
0:02:43.2]} 8... Nc6 {[%clk 0:02:36.7]} 9. O-O {[%clk 0:02:43.8]} 9... Nf6
{[%clk 0:02:36.4]} 10. Nc3 {[%clk 0:02:44.2]} 10... Be7 {[%clk 0:02:34.2]} 11.
e3 {[%clk 0:02:44.6]} 11... O-O {[%clk 0:02:33.3]} 12. Bd2 {[%clk 0:02:45.2]}
12... a6 {[%clk 0:02:32.9]} 13. Qe2 {[%clk 0:02:45.5]} 13... Rc8 {[%clk
0:02:30.4]} 14. Rac1 {[%clk 0:02:45.5]} 14... Nd7 {[%clk 0:01:53.9]} 15. Rfd1
{[%clk 0:02:15.7]} 15... Qc7 {[%clk 0:01:47.8]} 16. Be1 {[%clk 0:02:11.3]} 16...
Qb8 {[%clk 0:01:46.7]} 17. e4 {[%clk 0:02:08.6]} 17... dxe4 {[%clk 0:01:45]} 18.
Bxe4 {[%clk 0:02:04.3]} 18... Nf6 {[%clk 0:01:45]} 19. d5 {[%clk 0:02:02.6]}
19... exd5 {[%clk 0:01:41.2]} 20. Nxd5 {[%clk 0:02:02]} 20... Nxd5 {[%clk
0:01:34.8]} 21. Bxd5 {[%clk 0:02:02.9]} 21... Bf6 {[%clk 0:01:32.8]} 22. b3
{[%clk 0:01:53.6]} 22... Nd4 {[%clk 0:01:29.7]} 23. Qg4 {[%clk 0:01:46.9]} 23...
Rxc1 {[%clk 0:01:26.1]} 24. Rxc1 {[%clk 0:01:47.8]} 24... Qe5 {[%clk 0:01:22.5]}
25. Bc4 {[%clk 0:01:44]} 25... h5 {[%clk 0:01:17.2]} 26. Qd7 {[%clk 0:01:26]}
26... h4 {[%clk 0:01:08.3]} 27. Bb4 {[%clk 0:00:59.3]} 27... hxg3 {[%clk
0:00:22.6]} 28. Bxf8 {[%clk 0:00:58.6]} 28... gxf2+ {[%clk 0:00:08.8]} 29. Kf1
{[%clk 0:00:57.9]} 29... Qh5 {[%clk 0:00:03.9]} 30. Bxf7+ {[%clk 0:00:49.8]}
30... Qxf7 {[%clk 0:00:03.4]} 31. Qxf7+ {[%clk 0:00:50.7]} 31... Kxf7 {[%clk
0:00:04.2]} 32. Bc5 {[%clk 0:00:51.2]} 32... Nf5 {[%clk 0:00:02]} 33. Bxf2
{[%clk 0:00:50.9]} 33... b5 {[%clk 0:00:02.3]} 34. Rc6 {[%clk 0:00:50]} 34... a5
{[%clk 0:00:02.6]} 35. Rc5 {[%clk 0:00:50.4]} 35... Nd4 {[%clk 0:00:01.8]} 36.
Bxd4 {[%clk 0:00:50]} 1-0

[Event "Late-Titled-Tuesday-Blitz-April-02-2024"]
[Site "Chess.com"]
[Date "2024.04.02"]
[Round "4"]
[White "gorgeous1083"]
[Black "OriTaichman"]
[Result "0-1"]
[WhiteElo "2249"]
[BlackElo "2563"]
[TimeControl "180+1"]
[EndTime "14:37:02 PDT"]
[Termination "OriTaichman won by resignation"]

1. d4 {[%clk 0:03:00.9]} 1... Nf6 {[%clk 0:02:54.7]} 2. c4 {[%clk 0:03:01]} 2...
g6 {[%clk 0:02:55.1]} 3. Nc3 {[%clk 0:03:01.3]} 3... Bg7 {[%clk 0:02:55.6]} 4.
e4 {[%clk 0:03:00.9]} 4... O-O {[%clk 0:02:55.4]} 5. Nf3 {[%clk 0:03:01.5]} 5...
d6 {[%clk 0:02:55.7]} 6. Be2 {[%clk 0:03:01.5]} 6... e5 {[%clk 0:02:56.1]} 7.
Be3 {[%clk 0:03:01.4]} 7... Ng4 {[%clk 0:02:55.9]} 8. Bg5 {[%clk 0:03:01.7]}
8... f6 {[%clk 0:02:56.4]} 9. Bh4 {[%clk 0:03:02.2]} 9... Nc6 {[%clk 0:02:56.7]}
10. d5 {[%clk 0:02:47.7]} 10... Ne7 {[%clk 0:02:52.6]} 11. h3 {[%clk 0:02:42]}
11... Nh6 {[%clk 0:02:51.7]} 12. O-O {[%clk 0:02:41.3]} 12... c5 {[%clk
0:02:41.4]} 13. dxc6 {[%clk 0:02:39.8]} 13... bxc6 {[%clk 0:02:42.3]} 14. b4
{[%clk 0:02:37.1]} 14... Be6 {[%clk 0:02:36.4]} 15. Qc2 {[%clk 0:02:33.2]} 15...
d5 {[%clk 0:02:29]} 16. cxd5 {[%clk 0:02:24.1]} 16... cxd5 {[%clk 0:02:29.9]}
17. exd5 {[%clk 0:02:23.9]} 17... Nxd5 {[%clk 0:02:28]} 18. Nxd5 {[%clk
0:02:21.2]} 18... Qxd5 {[%clk 0:02:25.4]} 19. Rfd1 {[%clk 0:02:18.8]} 19... Qb7
{[%clk 0:02:22.2]} 20. Bc4 {[%clk 0:02:13.4]} 20... Bf7 {[%clk 0:01:55.9]} 21.
a4 {[%clk 0:02:06.9]} 21... Nf5 {[%clk 0:01:54.9]} 22. b5 {[%clk 0:01:59.6]}
22... Rac8 {[%clk 0:01:49.9]} 23. Bxf7+ {[%clk 0:01:59.2]} 23... Rxf7 {[%clk
0:01:46.7]} 24. Qb3 {[%clk 0:01:54.5]} 24... e4 {[%clk 0:01:35.7]} 25. g4 {[%clk
0:01:35.6]} 25... Nxh4 {[%clk 0:00:55.3]} 26. Nxh4 {[%clk 0:01:35.5]} 26... f5
{[%clk 0:00:55.8]} 27. gxf5 {[%clk 0:01:30.4]} 27... Bxa1 {[%clk 0:00:55.3]} 28.
fxg6 {[%clk 0:01:22.6]} 28... hxg6 {[%clk 0:00:50.7]} 29. Rxa1 {[%clk
0:01:15.7]} 29... Qb6 {[%clk 0:00:21.9]} 30. a5 {[%clk 0:01:08.3]} 30... Qxf2+
{[%clk 0:00:21.6]} 31. Kh1 {[%clk 0:01:05.1]} 31... Qxh4 {[%clk 0:00:22.5]} 32.
Rf1 {[%clk 0:00:59.5]} 32... Qe7 {[%clk 0:00:21.2]} 33. b6 {[%clk 0:00:56]}
33... axb6 {[%clk 0:00:21]} 34. axb6 {[%clk 0:00:55.5]} 34... e3 {[%clk
0:00:20.4]} 35. Re1 {[%clk 0:00:39.6]} 35... Qe4+ {[%clk 0:00:18.5]} 36. Kh2
{[%clk 0:00:36.4]} 36... Rc2+ {[%clk 0:00:17.3]} 0-1

[Event "Late-Titled-Tuesday-Blitz-April-02-2024"]
[Site "Chess.com"]
[Date "2024.04.02"]
[Round "4"]
[White "carlsenCamacho"]
[Black "rdarruda"]
[Result "0-1"]
[WhiteElo "2294"]
[BlackElo "2496"]
[TimeControl "180+1"]
[EndTime "14:37:02 PDT"]
[Termination "rdarruda won on time"]

1. e4 {[%clk 0:02:58.8]} 1... c5 {[%clk 0:02:59.5]} 2. Nf3 {[%clk 0:02:57.4]}
2... Nc6 {[%clk 0:02:59.6]} 3. d3 {[%clk 0:02:54.2]} 3... Nf6 {[%clk 0:02:58.4]}
4. g3 {[%clk 0:02:53]} 4... e6 {[%clk 0:02:58.4]} 5. Bg2 {[%clk 0:02:51]} 5...
d5 {[%clk 0:02:58.4]} 6. Nbd2 {[%clk 0:02:48.9]} 6... Be7 {[%clk 0:02:58.1]} 7.
O-O {[%clk 0:02:48.8]} 7... O-O {[%clk 0:02:58]} 8. Re1 {[%clk 0:02:48.7]} 8...
dxe4 {[%clk 0:02:57.2]} 9. dxe4 {[%clk 0:02:47.3]} 9... b6 {[%clk 0:02:57.1]}
10. c3 {[%clk 0:02:37.4]} 10... Bb7 {[%clk 0:02:55]} 11. Qe2 {[%clk 0:02:35.2]}
11... Qd7 {[%clk 0:02:47.7]} 12. a4 {[%clk 0:02:34.6]} 12... Rfd8 {[%clk
0:02:47]} 13. Nc4 {[%clk 0:02:32.3]} 13... Qd3 {[%clk 0:02:45.7]} 14. Bg5 {[%clk
0:02:30.8]} 14... Qxe2 {[%clk 0:02:44.5]} 15. Rxe2 {[%clk 0:02:29.5]} 15... Ba6
{[%clk 0:02:44.4]} 16. b3 {[%clk 0:02:29.5]} 16... Na5 {[%clk 0:02:43.4]} 17.
Nfd2 {[%clk 0:02:18.5]} 17... Nxb3 {[%clk 0:02:41.5]} 18. Nxb3 {[%clk
0:02:09.7]} 18... Bxc4 {[%clk 0:02:40.8]} 19. Rb2 {[%clk 0:02:10.2]} 19... Rac8
{[%clk 0:02:32.4]} 20. e5 {[%clk 0:02:04.9]} 20... Bxb3 {[%clk 0:02:16.7]} 21.
exf6 {[%clk 0:01:27.7]} 21... gxf6 {[%clk 0:02:17.6]} 22. Rxb3 {[%clk
0:01:16.8]} 22... fxg5 {[%clk 0:02:16.3]} 23. a5 {[%clk 0:01:17.3]} 23... c4
{[%clk 0:02:12.1]} 24. Rb5 {[%clk 0:01:08.1]} 24... Bc5 {[%clk 0:02:09.7]} 25.
axb6 {[%clk 0:00:56.4]} 25... axb6 {[%clk 0:02:10.6]} 26. Rb2 {[%clk 0:00:46.9]}
26... Rd3 {[%clk 0:02:07.5]} 27. Bf1 {[%clk 0:00:35.5]} 27... Rxc3 {[%clk
0:02:06.2]} 28. Ra4 {[%clk 0:00:35.9]} 28... Rc1 {[%clk 0:02:01.3]} 29. Kg2
{[%clk 0:00:27.5]} 29... c3 {[%clk 0:01:59]} 30. Re2 {[%clk 0:00:26.2]} 30... b5
{[%clk 0:01:51.5]} 31. Rg4 {[%clk 0:00:26]} 31... b4 {[%clk 0:01:47.9]} 32. Rc4
{[%clk 0:00:25.8]} 32... b3 {[%clk 0:01:40.2]} 33. Re5 {[%clk 0:00:24.9]} 33...
b2 {[%clk 0:01:25.3]} 34. Bd3 {[%clk 0:00:18.6]} 34... Rd1 {[%clk 0:01:24.4]}
35. Be4 {[%clk 0:00:15.1]} 35... Rd4 {[%clk 0:01:14.5]} 36. Rxg5+ {[%clk
0:00:11.2]} 36... Kf8 {[%clk 0:01:13.2]} 37. Rxd4 {[%clk 0:00:11.3]} 37... Bxd4
{[%clk 0:01:12.9]} 38. Bc2 {[%clk 0:00:11.5]} 38... Rb8 {[%clk 0:01:11.5]} 39.
Bb1 {[%clk 0:00:11.2]} 39... Ra8 {[%clk 0:01:09.9]} 40. Rg4 {[%clk 0:00:02.4]}
40... Ra1 {[%clk 0:01:08]} 41. Bd3 {[%clk 0:00:02.2]} 41... e5 {[%clk
0:01:00.5]} 0-1

[Event "Late-Titled-Tuesday-Blitz-April-02-2024"]
[Site "Chess.com"]
[Date "2024.04.02"]
[Round "4"]
[White "Hikaru"]
[Black "Durarbayli"]
[Result "1-0"]
[WhiteElo "3267"]
[BlackElo "2923"]
[TimeControl "180+1"]
[EndTime "14:37:04 PDT"]
[Termination "Hikaru won by resignation"]

1. d4 {[%clk 0:03:00.9]} 1... Nf6 {[%clk 0:02:58.2]} 2. Bg5 {[%clk 0:03:00.7]}
2... e6 {[%clk 0:02:55.9]} 3. e4 {[%clk 0:02:59.2]} 3... h6 {[%clk 0:02:51.1]}
4. Bxf6 {[%clk 0:02:58.8]} 4... Qxf6 {[%clk 0:02:52]} 5. Nc3 {[%clk 0:02:59.1]}
5... b6 {[%clk 0:02:47.2]} 6. e5 {[%clk 0:02:53.8]} 6... Qd8 {[%clk 0:02:45.2]}
7. Bd3 {[%clk 0:02:52.7]} 7... Bb7 {[%clk 0:02:42.4]} 8. Be4 {[%clk 0:02:52.5]}
8... Bxe4 {[%clk 0:02:25.1]} 9. Nxe4 {[%clk 0:02:53.4]} 9... Nc6 {[%clk
0:02:25]} 10. Nf3 {[%clk 0:02:36.5]} 10... d5 {[%clk 0:02:21.1]} 11. Ng3 {[%clk
0:02:35.7]} 11... Na5 {[%clk 0:02:11.9]} 12. c3 {[%clk 0:02:30.8]} 12... c5
{[%clk 0:02:11.3]} 13. dxc5 {[%clk 0:02:30.9]} 13... bxc5 {[%clk 0:01:40.8]} 14.
Qa4+ {[%clk 0:02:29.4]} 14... Ke7 {[%clk 0:01:41.2]} 15. b3 {[%clk 0:02:29.7]}
15... Qb6 {[%clk 0:01:35.1]} 16. O-O {[%clk 0:02:29.5]} 16... Nc6 {[%clk
0:01:30.3]} 17. Nh5 {[%clk 0:02:26.5]} 17... g6 {[%clk 0:01:19.7]} 18. Qh4+
{[%clk 0:02:08.9]} 18... g5 {[%clk 0:01:20.2]} 19. Qa4 {[%clk 0:02:05]} 19...
Rg8 {[%clk 0:01:18]} 20. Rad1 {[%clk 0:01:55.5]} 20... Rd8 {[%clk 0:01:14.6]}
21. h4 {[%clk 0:01:47.4]} 21... Rg6 {[%clk 0:00:42.9]} 22. hxg5 {[%clk
0:01:43.8]} 22... hxg5 {[%clk 0:00:43.8]} 23. g4 {[%clk 0:01:42.3]} 23... Bg7
{[%clk 0:00:41.5]} 24. Rfe1 {[%clk 0:01:42.3]} 24... Bh8 {[%clk 0:00:41.1]} 25.
Kg2 {[%clk 0:01:35.3]} 25... Kd7 {[%clk 0:00:34.5]} 26. b4 {[%clk 0:01:05]}
26... cxb4 {[%clk 0:00:34.5]} 27. c4 {[%clk 0:01:02.6]} 27... Ke7 {[%clk
0:00:30.7]} 28. cxd5 {[%clk 0:01:01]} 28... exd5 {[%clk 0:00:22.7]} 29. Ng3
{[%clk 0:00:58.1]} 29... Kf8 {[%clk 0:00:20.3]} 30. Nf5 {[%clk 0:00:55.5]} 30...
Ne7 {[%clk 0:00:18.5]} 31. Rh1 {[%clk 0:00:54]} 31... Bg7 {[%clk 0:00:18.5]} 32.
Nxe7 {[%clk 0:00:42.3]} 32... Kxe7 {[%clk 0:00:19.4]} 33. Nd4 {[%clk 0:00:42.5]}
33... Kf8 {[%clk 0:00:17]} 34. Nf5 {[%clk 0:00:41.4]} 34... Bxe5 {[%clk
0:00:16.1]} 35. Rde1 {[%clk 0:00:40.9]} 35... Bc3 {[%clk 0:00:12.7]} 36. Re3
{[%clk 0:00:40.4]} 36... d4 {[%clk 0:00:11]} 37. Rh8+ {[%clk 0:00:33.3]} 37...
Rg8 {[%clk 0:00:11.7]} 38. Re8+ {[%clk 0:00:32.1]} 38... Rxe8 {[%clk 0:00:11.7]}
39. Rxg8+ {[%clk 0:00:31.4]} 39... Kxg8 {[%clk 0:00:12.3]} 40. Qxe8+ {[%clk
0:00:32]} 1-0

[Event "Late-Titled-Tuesday-Blitz-April-02-2024"]
[Site "Chess.com"]
[Date "2024.04.02"]
[Round "4"]
[White "Manukyan_Artak"]
[Black "WCM-Mexicana"]
[Result "0-1"]
[WhiteElo "2526"]
[BlackElo "2402"]
[TimeControl "180+1"]
[EndTime "14:37:05 PDT"]
[Termination "WCM-Mexicana won by checkmate"]

1. e4 {[%clk 0:03:00]} 1... c6 {[%clk 0:02:59]} 2. d4 {[%clk 0:02:59.9]} 2... d5
{[%clk 0:02:55.8]} 3. e5 {[%clk 0:03:00.1]} 3... Bf5 {[%clk 0:02:50.6]} 4. c4
{[%clk 0:02:59.8]} 4... e6 {[%clk 0:02:49]} 5. Nc3 {[%clk 0:02:59.3]} 5... Ne7
{[%clk 0:02:48.1]} 6. Nf3 {[%clk 0:02:58.4]} 6... Nd7 {[%clk 0:02:39.1]} 7. Nh4
{[%clk 0:02:58]} 7... a6 {[%clk 0:02:35.4]} 8. g4 {[%clk 0:02:20.4]} 8... Bg6
{[%clk 0:02:32.5]} 9. f4 {[%clk 0:02:12.4]} 9... dxc4 {[%clk 0:02:01.2]} 10.
Bxc4 {[%clk 0:02:09.5]} 10... Nd5 {[%clk 0:02:01.4]} 11. Nxg6 {[%clk 0:02:08.9]}
11... hxg6 {[%clk 0:02:01.4]} 12. g5 {[%clk 0:02:05.8]} 12... Bb4 {[%clk
0:01:51.7]} 13. Bd2 {[%clk 0:02:04.6]} 13... Be7 {[%clk 0:01:29]} 14. Bxd5
{[%clk 0:01:58.8]} 14... cxd5 {[%clk 0:01:27.3]} 15. Qf3 {[%clk 0:01:40.5]}
15... Qb6 {[%clk 0:01:25]} 16. O-O-O {[%clk 0:01:40.7]} 16... Qxd4 {[%clk
0:01:12.1]} 17. Kb1 {[%clk 0:01:35.3]} 17... Rc8 {[%clk 0:01:07]} 18. Be3 {[%clk
0:01:28.6]} 18... Qb4 {[%clk 0:01:04.3]} 19. a3 {[%clk 0:01:05.1]} 19... Qb3
{[%clk 0:01:02.3]} 20. Bc1 {[%clk 0:00:44.9]} 20... Bxa3 {[%clk 0:01:01.5]} 21.
Rd3 {[%clk 0:00:35.8]} 21... Be7 {[%clk 0:01:01.2]} 22. h4 {[%clk 0:00:32.1]}
22... a5 {[%clk 0:00:54.1]} 23. Rh2 {[%clk 0:00:31.5]} 23... Qc4 {[%clk
0:00:41.3]} 24. h5 {[%clk 0:00:25.5]} 24... gxh5 {[%clk 0:00:40.6]} 25. Rxh5
{[%clk 0:00:26.4]} 25... Rxh5 {[%clk 0:00:40.7]} 26. Qxh5 {[%clk 0:00:26.5]}
26... Qxd3+ {[%clk 0:00:40.9]} 27. Ka2 {[%clk 0:00:26.8]} 27... Qc2 {[%clk
0:00:24.4]} 28. Qh1 {[%clk 0:00:22.5]} 28... Rxc3 {[%clk 0:00:23.6]} 29. f5
{[%clk 0:00:17.8]} 29... Qxc1 {[%clk 0:00:20.6]} 30. Qh8+ {[%clk 0:00:16.5]}
30... Nf8 {[%clk 0:00:20.6]} 31. bxc3 {[%clk 0:00:16.4]} 31... Qc2+ {[%clk
0:00:20.5]} 32. Ka1 {[%clk 0:00:16.1]} 32... Ba3 {[%clk 0:00:19.1]} 33. Qh2
{[%clk 0:00:15.2]} 33... Qxh2 {[%clk 0:00:19.2]} 34. g6 {[%clk 0:00:14.1]} 34...
Qb2# {[%clk 0:00:20.1]} 0-1

[Event "Late-Titled-Tuesday-Blitz-April-02-2024"]
[Site "Chess.com"]
[Date "2024.04.02"]
[Round "4"]
[White "OlaaLa"]
[Black "Lady_Nika"]
[Result "0-1"]
[WhiteElo "2364"]
[BlackElo "2551"]
[TimeControl "180+1"]
[EndTime "14:37:09 PDT"]
[Termination "Lady_Nika won by resignation"]

1. d4 {[%clk 0:02:56.9]} 1... d5 {[%clk 0:02:59.9]} 2. g3 {[%clk 0:02:49.6]}
2... Nf6 {[%clk 0:02:59.1]} 3. Bg2 {[%clk 0:02:50.1]} 3... g6 {[%clk 0:02:59.5]}
4. c3 {[%clk 0:02:49.1]} 4... Bg7 {[%clk 0:02:59.8]} 5. Nd2 {[%clk 0:02:49.4]}
5... O-O {[%clk 0:03:00.1]} 6. Ngf3 {[%clk 0:02:45.3]} 6... c6 {[%clk
0:03:00.1]} 7. O-O {[%clk 0:02:45.5]} 7... Nbd7 {[%clk 0:02:59.4]} 8. Re1 {[%clk
0:02:44.9]} 8... Ne4 {[%clk 0:02:56.4]} 9. Nxe4 {[%clk 0:02:41.4]} 9... dxe4
{[%clk 0:02:56.5]} 10. Ng5 {[%clk 0:02:41.7]} 10... f5 {[%clk 0:02:35.3]} 11.
Ne6 {[%clk 0:02:40]} 11... Qa5 {[%clk 0:02:29]} 12. Nxf8 {[%clk 0:02:37.7]}
12... Nxf8 {[%clk 0:02:25.9]} 13. f3 {[%clk 0:02:32.1]} 13... e5 {[%clk
0:02:15.3]} 14. fxe4 {[%clk 0:02:30.6]} 14... exd4 {[%clk 0:02:15.1]} 15. cxd4
{[%clk 0:02:27.4]} 15... Bxd4+ {[%clk 0:02:14.5]} 16. e3 {[%clk 0:02:27.7]}
16... Bb6 {[%clk 0:02:07.1]} 17. Rf1 {[%clk 0:02:20.6]} 17... Qe5 {[%clk
0:02:02.7]} 18. Kh1 {[%clk 0:02:13.4]} 18... fxe4 {[%clk 0:01:57.1]} 19. Bd2
{[%clk 0:02:13.2]} 19... Bf5 {[%clk 0:01:52.3]} 20. Bc3 {[%clk 0:02:12.6]} 20...
Qe7 {[%clk 0:01:49.8]} 21. Qb3+ {[%clk 0:01:35.8]} 21... Qe6 {[%clk 0:01:49.6]}
22. Qxe6+ {[%clk 0:01:32.5]} 22... Nxe6 {[%clk 0:01:50.5]} 23. h3 {[%clk
0:01:21.1]} 23... h5 {[%clk 0:01:48.9]} 24. Rad1 {[%clk 0:01:14.7]} 24... Ng5
{[%clk 0:01:30.2]} 25. h4 {[%clk 0:01:06.6]} 25... Nf3 {[%clk 0:01:26.6]} 26.
Bxf3 {[%clk 0:01:04.4]} 26... exf3 {[%clk 0:01:27.5]} 27. Bd4 {[%clk 0:01:02.4]}
27... Bc7 {[%clk 0:01:22.7]} 28. Kh2 {[%clk 0:00:58.5]} 28... Re8 {[%clk
0:01:14.2]} 29. a4 {[%clk 0:00:29.5]} 29... Re4 {[%clk 0:01:13.7]} 30. Bf6
{[%clk 0:00:20.3]} 30... Rxe3 {[%clk 0:01:10.9]} 31. Rf2 {[%clk 0:00:20.6]}
31... Re4 {[%clk 0:01:01.4]} 32. Rdd2 {[%clk 0:00:14.1]} 32... Bg4 {[%clk
0:00:56.3]} 33. Bg5 {[%clk 0:00:13.4]} 33... Bb6 {[%clk 0:00:55.5]} 34. Rf1
{[%clk 0:00:12.6]} 34... Re2+ {[%clk 0:00:51.2]} 35. Rxe2 {[%clk 0:00:08.6]}
35... fxe2 {[%clk 0:00:52.1]} 36. Re1 {[%clk 0:00:09.1]} 36... Ba5 {[%clk
0:00:52.3]} 37. Rxe2 {[%clk 0:00:03.9]} 37... Bxe2 {[%clk 0:00:52.3]} 38. Be3
{[%clk 0:00:04.8]} 38... Bb6 {[%clk 0:00:50.8]} 39. Bf4 {[%clk 0:00:05]} 39...
Kf7 {[%clk 0:00:50.4]} 40. Kg2 {[%clk 0:00:04.8]} 40... Bg4 {[%clk 0:00:50]} 41.
Kf1 {[%clk 0:00:04.7]} 41... Ke6 {[%clk 0:00:50.5]} 0-1

[Event "Late-Titled-Tuesday-Blitz-April-02-2024"]
[Site "Chess.com"]
[Date "2024.04.02"]
[Round "4"]
[White "BardArtem"]
[Black "Jospem"]
[Result "0-1"]
[WhiteElo "2846"]
[BlackElo "3043"]
[TimeControl "180+1"]
[EndTime "14:37:10 PDT"]
[Termination "Jospem won on time"]

1. e4 {[%clk 0:03:00.9]} 1... c5 {[%clk 0:02:57.7]} 2. Nf3 {[%clk 0:02:56.3]}
2... d6 {[%clk 0:02:57]} 3. Nc3 {[%clk 0:02:55.7]} 3... a6 {[%clk 0:02:56.3]} 4.
g3 {[%clk 0:02:55.6]} 4... e6 {[%clk 0:02:55.3]} 5. Bg2 {[%clk 0:02:55.2]} 5...
Nc6 {[%clk 0:02:56]} 6. O-O {[%clk 0:02:55.2]} 6... Bd7 {[%clk 0:02:56.6]} 7. d4
{[%clk 0:02:55.2]} 7... cxd4 {[%clk 0:02:57.5]} 8. Nxd4 {[%clk 0:02:56.1]} 8...
Nf6 {[%clk 0:02:58.1]} 9. Be3 {[%clk 0:02:54.1]} 9... Rc8 {[%clk 0:02:52]} 10.
Nxc6 {[%clk 0:02:53.9]} 10... Bxc6 {[%clk 0:02:51.8]} 11. Re1 {[%clk 0:02:45.5]}
11... Be7 {[%clk 0:02:49.1]} 12. h3 {[%clk 0:02:34.6]} 12... O-O {[%clk
0:02:46.2]} 13. Qd2 {[%clk 0:02:34.7]} 13... b5 {[%clk 0:02:44.2]} 14. a3 {[%clk
0:02:33.2]} 14... Nd7 {[%clk 0:02:41.6]} 15. Rad1 {[%clk 0:02:09.8]} 15... Qc7
{[%clk 0:02:40.9]} 16. f4 {[%clk 0:01:54.6]} 16... Nb6 {[%clk 0:02:31.5]} 17.
Bf1 {[%clk 0:01:53.7]} 17... Rfd8 {[%clk 0:02:16.6]} 18. Kh2 {[%clk 0:01:53.5]}
18... Bf8 {[%clk 0:02:12.2]} 19. Qf2 {[%clk 0:01:52.4]} 19... Rb8 {[%clk
0:02:10.3]} 20. Bd4 {[%clk 0:01:23.9]} 20... Nc4 {[%clk 0:01:56.9]} 21. Bxc4
{[%clk 0:01:15.7]} 21... bxc4 {[%clk 0:01:57.8]} 22. Rb1 {[%clk 0:01:05.8]}
22... Rb7 {[%clk 0:01:47.5]} 23. f5 {[%clk 0:01:04.9]} 23... Re8 {[%clk
0:01:41.5]} 24. f6 {[%clk 0:01:00.4]} 24... g6 {[%clk 0:01:41.2]} 25. Be3 {[%clk
0:00:55.3]} 25... Qa5 {[%clk 0:01:40.3]} 26. Qd2 {[%clk 0:00:50.7]} 26... Qe5
{[%clk 0:01:29.4]} 27. Rf1 {[%clk 0:00:50.1]} 27... Qh5 {[%clk 0:01:15.6]} 28.
g4 {[%clk 0:00:45.3]} 28... Qe5+ {[%clk 0:01:15.2]} 29. Bf4 {[%clk 0:00:38.9]}
29... Qxf6 {[%clk 0:01:13.6]} 30. Bxd6 {[%clk 0:00:38.6]} 30... Qd8 {[%clk
0:01:10.5]} 31. e5 {[%clk 0:00:18.3]} 31... Rd7 {[%clk 0:01:10.5]} 32. Rbd1
{[%clk 0:00:14.7]} 32... Bxd6 {[%clk 0:01:09.9]} 33. exd6 {[%clk 0:00:15.6]}
33... Qb8 {[%clk 0:01:10.3]} 34. Qd4 {[%clk 0:00:10.4]} 34... Red8 {[%clk
0:01:07.8]} 35. Qxc4 {[%clk 0:00:05.7]} 35... Rxd6 {[%clk 0:01:07.7]} 36. Qf4
{[%clk 0:00:04]} 36... Rd2+ {[%clk 0:01:06]} 37. Rxd2 {[%clk 0:00:01.6]} 37...
Rxd2+ {[%clk 0:01:06.9]} 38. Kg3 {[%clk 0:00:02.1]} 38... Rg2+ {[%clk
0:00:55.9]} 39. Kh4 {[%clk 0:00:01.9]} 39... Qxf4 {[%clk 0:00:56.6]} 40. Rxf4
{[%clk 0:00:02.3]} 40... h6 {[%clk 0:00:56.9]} 41. Rb4 {[%clk 0:00:01.8]} 41...
Kg7 {[%clk 0:00:55.6]} 42. Rb6 {[%clk 0:00:01.6]} 42... Be8 {[%clk 0:00:53.7]}
43. Rb8 {[%clk 0:00:02.3]} 43... g5+ {[%clk 0:00:53.9]} 44. Kh5 {[%clk
0:00:02.5]} 44... Rg3 {[%clk 0:00:53.6]} 0-1

[Event "Late-Titled-Tuesday-Blitz-April-02-2024"]
[Site "Chess.com"]
[Date "2024.04.02"]
[Round "4"]
[White "PotapovaM"]
[Black "AlexandreHouhou"]
[Result "1-0"]
[WhiteElo "2543"]
[BlackElo "2360"]
[TimeControl "180+1"]
[EndTime "14:37:10 PDT"]
[Termination "PotapovaM won by resignation"]

1. e4 {[%clk 0:02:55.1]} 1... e6 {[%clk 0:03:00.4]} 2. d4 {[%clk 0:02:50.2]}
2... d5 {[%clk 0:03:01.3]} 3. Nc3 {[%clk 0:02:50.3]} 3... Nf6 {[%clk 0:02:57.4]}
4. Bg5 {[%clk 0:02:46.8]} 4... Bb4 {[%clk 0:02:57]} 5. e5 {[%clk 0:02:20.3]}
5... h6 {[%clk 0:02:56.6]} 6. Bd2 {[%clk 0:02:20.2]} 6... Bxc3 {[%clk
0:02:56.4]} 7. bxc3 {[%clk 0:02:17.9]} 7... Ne4 {[%clk 0:02:57.1]} 8. Bd3 {[%clk
0:02:12.7]} 8... Nxd2 {[%clk 0:02:55.8]} 9. Qxd2 {[%clk 0:02:12.4]} 9... c5
{[%clk 0:02:56.6]} 10. Nf3 {[%clk 0:02:10.3]} 10... Nc6 {[%clk 0:02:56.2]} 11.
O-O {[%clk 0:02:10.1]} 11... O-O {[%clk 0:02:52.8]} 12. a4 {[%clk 0:02:08.5]}
12... Qa5 {[%clk 0:02:52.4]} 13. Qe3 {[%clk 0:02:06.3]} 13... c4 {[%clk
0:02:46.9]} 14. Be2 {[%clk 0:02:05.8]} 14... Ne7 {[%clk 0:02:31.8]} 15. Nh4
{[%clk 0:02:05]} 15... Nf5 {[%clk 0:02:31.8]} 16. Nxf5 {[%clk 0:02:01.4]} 16...
exf5 {[%clk 0:02:32.7]} 17. Rfb1 {[%clk 0:01:55.8]} 17... a6 {[%clk 0:02:22.8]}
18. Bf3 {[%clk 0:01:50.9]} 18... Rd8 {[%clk 0:02:18.7]} 19. g3 {[%clk
0:01:49.1]} 19... Qc7 {[%clk 0:02:18.3]} 20. a5 {[%clk 0:01:47.7]} 20... Be6
{[%clk 0:02:15.1]} 21. Rb6 {[%clk 0:01:46.2]} 21... Rab8 {[%clk 0:02:06.9]} 22.
Rab1 {[%clk 0:01:45.8]} 22... Qd7 {[%clk 0:02:05.6]} 23. R1b4 {[%clk 0:01:44.6]}
23... Rdc8 {[%clk 0:01:54.1]} 24. Rd6 {[%clk 0:01:43.7]} 24... Qe8 {[%clk
0:01:46.3]} 25. Bxd5 {[%clk 0:01:43.7]} 25... Bxd5 {[%clk 0:01:32.6]} 26. Rxd5
{[%clk 0:01:44.6]} 26... Qe6 {[%clk 0:01:21]} 27. Rd6 {[%clk 0:01:44.6]} 27...
Qe7 {[%clk 0:01:17.2]} 28. Qf3 {[%clk 0:01:44.6]} 28... g6 {[%clk 0:01:10.7]}
29. Qd5 {[%clk 0:01:42.2]} 29... Rd8 {[%clk 0:01:08.1]} 30. Rbb6 {[%clk
0:01:36.6]} 30... Rxd6 {[%clk 0:01:05.5]} 31. Rxd6 {[%clk 0:01:37.5]} 31... Qg5
{[%clk 0:00:53.9]} 32. e6 {[%clk 0:01:28.5]} 32... Rf8 {[%clk 0:00:39.9]} 33.
Qe5 {[%clk 0:01:06.2]} 33... Qc1+ {[%clk 0:00:17.7]} 34. Kg2 {[%clk 0:01:06.1]}
34... Qxc2 {[%clk 0:00:18.4]} 35. e7 {[%clk 0:00:52.2]} 35... Re8 {[%clk
0:00:14.4]} 36. Rd8 {[%clk 0:00:52.1]} 36... Qa4 {[%clk 0:00:15]} 37. Qb8 {[%clk
0:00:43.9]} 37... Qc6+ {[%clk 0:00:11.1]} 38. d5 {[%clk 0:00:44.3]} 38... Qxd5+
{[%clk 0:00:08.1]} 39. Rxd5 {[%clk 0:00:45.2]} 39... Rxb8 {[%clk 0:00:07.5]} 40.
Rd8+ {[%clk 0:00:45.7]} 1-0